fUSD/lending_fUSD_20250828
["ID","MTS","AMOUNT","RATE_DAILY","PERIOD"]
[381775135,1756342250787,-400.0,0.00017845,2]
[381775137,1756342250797,-400.0,0.00017845,2]
[381775138,1756342250807,-500.0,0.00017845,2]
[381775140,1756342250816,-450.35,0.00017845,2]
[381775142,1756342250825,-400.0,0.00017845,2]
[381775143,1756342250834,-400.0,0.00017845,2]
[381775145,1756342250844,-400.0,0.00017845,2]
[381775147,1756342250853,-400.0,0.00017845,2]
[381775149,1756342250863,-247.57064242,0.00017845,2]
[381775151,1756342250872,-400.0,0.00017845,2]
[381775153,1756342250881,-400.0,0.00017845,2]
[381775154,1756342250892,-400.0,0.00017845,2]
[381775156,1756342250902,-400.0,0.00017845,2]
[381775158,1756342250911,-400.0,0.00017845,2]
[381775160,1756342250920,-473.7,0.00017845,2]
[381775162,1756342250929,-400.0,0.00017845,2]
[381775163,1756342250938,-400.0,0.00017845,2]
[381775165,1756342250948,-400.0,0.00017845,2]
[381775167,1756342250957,-400.0,0.00017845,2]
[381775169,1756342250966,-400.0,0.00017845,2]
[381775171,1756342250975,-400.0,0.00017845,2]
[381775172,1756342250985,-400.0,0.00017845,2]
[381775174,1756342250994,-400.0,0.00017845,2]
[381775176,1756342251005,-400.0,0.00017845,2]
[381775178,1756342251015,-400.0,0.00017845,2]
[381775180,1756342251024,-400.0,0.00017845,2]
[381775182,1756342251035,-400.0,0.00017845,2]
[381775184,1756342251044,-400.0,0.00017845,2]
[381775185,1756342251053,-400.0,0.00017845,2]
[381775187,1756342251063,-400.77410118,0.00017845,2]
[381775189,1756342251072,-1000.0,0.00017845,2]
[381775191,1756342251081,-400.0,0.00017845,2]
[381775193,1756342251090,-400.0,0.00017845,2]
[381775194,1756342251099,-400.0,0.00017845,2]
[381775196,1756342251110,-400.0,0.00017845,2]
[381775198,1756342251119,-400.0,0.00017845,2]
[381775200,1756342251128,-400.0,0.00017845,2]
[381775202,1756342251137,-400.0,0.00017845,2]
[381775203,1756342251147,-400.0,0.00017845,2]
[381775205,1756342251156,-189.41220852,0.00017845,2]
[381775207,1756342251166,-400.0,0.00017845,2]
[381775209,1756342251175,-400.0,0.00017845,2]
[381775211,1756342251184,-400.0,0.00017845,2]
[381775213,1756342251195,-400.0,0.00017845,2]
[381775214,1756342251204,-400.0,0.00017845,2]
[381775216,1756342251214,-400.0,0.00017845,2]
[381775218,1756342251223,-400.0,0.00017845,2]
[381775220,1756342251232,-480.78,0.00017845,2]
[381775222,1756342251241,-400.0,0.00017845,2]
[381775224,1756342251250,-527.91,0.00017845,2]
[381775225,1756342251259,-403.98124613,0.00017845,2]
[381775227,1756342251269,-400.0,0.00017845,2]
[381775229,1756342251278,-400.0,0.00017845,2]
[381775231,1756342251287,-400.0,0.00017845,2]
[381775233,1756342251297,-154.79422652,0.00017845,2]
[381775235,1756342251306,-569.25,0.00017845,2]
[381775236,1756342251315,-400.0,0.00017845,2]
[381775238,1756342251324,-400.0,0.00017845,2]
[381775240,1756342251333,-400.0,0.00017845,2]
[381775242,1756342251342,-400.0,0.00017845,2]
[381775244,1756342251351,-400.0,0.00017845,2]
[381775245,1756342251362,-400.0,0.00017845,2]
[381775247,1756342251371,-400.0,0.00017845,2]
[381775249,1756342251381,-640.0,0.00017845,2]
[381775251,1756342251390,-400.0,0.00017845,2]
[381775253,1756342251399,-354.81284183,0.00017845,2]
[381775255,1756342251408,-227.74204361,0.00017845,2]
[381775256,1756342251418,-400.0,0.00017845,2]
[381775258,1756342251427,-400.0,0.00017845,2]
[381775260,1756342251436,-400.0,0.00017845,2]
[381775262,1756342251445,-400.0,0.00017845,2]
[381775264,1756342251454,-400.0,0.00017845,2]
[381775266,1756342251464,-400.0,0.00017845,2]
[381775267,1756342251473,-525.27,0.00017845,2]
[381775269,1756342251482,-400.0,0.00017845,2]
[381775271,1756342251491,-450.04,0.00017845,2]
[381775273,1756342251500,-400.0,0.00017845,2]
[381775275,1756342251510,-400.0,0.00017845,2]
[381775276,1756342251519,-400.0,0.00017845,2]
[381775278,1756342251528,-400.0,0.00017845,2]
[381775280,1756342251537,-417.5,0.00017846,2]
[381775282,1756342251546,-443.47,0.00017846,2]
[381775284,1756342251555,-400.0,0.00017846,2]
[381775286,1756342251564,-400.0,0.00017846,2]
[381775287,1756342251573,-400.0,0.00017846,2]
[381775289,1756342251582,-400.0,0.00017846,2]
[381775291,1756342251594,-400.0,0.00017846,2]
[381775293,1756342251604,-400.0,0.00017846,2]
[381775295,1756342251613,-622.46,0.00017846,2]
[381775296,1756342251622,-400.0,0.00017846,2]
[381775298,1756342251632,-499.63498753,0.00017846,2]
[381775300,1756342251641,-400.0,0.00017846,2]
[381775302,1756342251650,-413.59,0.00017846,2]
[381775304,1756342251659,-274.11,0.00017846,2]
[381775305,1756342251669,-216.08498224,0.00017846,2]
[381775307,1756342251679,-400.0,0.00017846,2]
[381775309,1756342251688,-400.0,0.00017846,2]
[381775311,1756342251698,-414.97,0.00017846,2]
[381775313,1756342251707,-400.0,0.00017846,2]
[381775315,1756342251716,-545.14,0.00017846,2]
[381775317,1756342251725,-411.93,0.00017846,2]
[381775318,1756342251734,-400.0,0.00017846,2]
[381775320,1756342251744,-549.96,0.00017846,2]
[381775322,1756342251754,-400.0,0.00017846,2]
[381775324,1756342251763,-400.0,0.00017846,2]
[381775326,1756342251773,-400.0,0.00017846,2]
[381775328,1756342251781,-400.0,0.00017846,2]
[381775329,1756342251791,-413.12,0.00017846,2]
[381775331,1756342251800,-400.0,0.00017846,2]
[381775333,1756342251810,-400.0,0.00017846,2]
[381775335,1756342251819,-400.0,0.00017846,2]
[381775337,1756342251828,-400.0,0.00017846,2]
[381775339,1756342251837,-400.0,0.00017846,2]
[381775340,1756342251846,-400.0,0.00017846,2]
[381775342,1756342251857,-400.0,0.00017846,2]
[381775344,1756342251866,-400.0,0.00017846,2]
[381775346,1756342251875,-400.0,0.00017846,2]
[381775348,1756342251885,-400.0,0.00017846,2]
[381775350,1756342251894,-400.0,0.00017846,2]
[381775352,1756342251903,-408.79,0.00017846,2]
[381775353,1756342251912,-400.0,0.00017846,2]
[381775355,1756342251922,-400.0,0.00017846,2]
[381775357,1756342251931,-691.63,0.00017846,2]
[381775359,1756342251940,-400.0,0.00017846,2]
[381775361,1756342251950,-400.0,0.00017846,2]
[381775363,1756342251959,-400.0,0.00017846,2]
[381775365,1756342251968,-400.0,0.00017846,2]
[381775366,1756342251977,-400.0,0.00017846,2]
[381775368,1756342251987,-400.0,0.00017846,2]
[381775370,1756342251996,-400.0,0.00017846,2]
[381775372,1756342252005,-400.0,0.00017846,2]
[381775374,1756342252015,-406.09,0.00017846,2]
[381775376,1756342252024,-400.0,0.00017846,2]
[381775378,1756342252033,-400.0,0.00017846,2]
[381775380,1756342252042,-412.43,0.00017846,2]
[381775382,1756342252051,-494.38,0.00017846,2]
[381775383,1756342252060,-400.0,0.00017846,2]
[381775384,1756342252069,-400.0,0.00017846,2]
[381775385,1756342252079,-400.0,0.00017846,2]
[381775386,1756342252087,-400.0,0.00017846,2]
[381775387,1756342252097,-400.0,0.00017846,2]
[381775388,1756342252107,-400.0,0.00017846,2]
[381775389,1756342252117,-400.0,0.00017846,2]
[381775390,1756342252126,-400.0,0.00017846,2]
[381775391,1756342252135,-400.0,0.00017846,2]
[381775392,1756342252144,-400.0,0.00017846,2]
[381775393,1756342252153,-400.0,0.00017846,2]
[381775394,1756342252162,-400.0,0.00017846,2]
[381775395,1756342252173,-400.0,0.00017846,2]
[381775396,1756342252183,-858.88,0.00017846,2]
[381775397,1756342252192,-400.0,0.00017846,2]
[381775398,1756342252201,-400.0,0.00017846,2]
[381775399,1756342252211,-400.0,0.00017846,2]
[381775400,1756342252220,-400.0,0.00017846,2]
[381775401,1756342252229,-400.0,0.00017846,2]
[381775402,1756342252238,-400.0,0.00017846,2]
[381775403,1756342252247,-400.0,0.00017846,2]
[381775404,1756342252257,-400.0,0.00017846,2]
[381775405,1756342252267,-400.0,0.00017846,2]
[381775406,1756342252276,-400.0,0.00017846,2]
[381775407,1756342252285,-400.0,0.00017846,2]
[381775408,1756342252295,-400.0,0.00017846,2]
[381775409,1756342252304,-400.0,0.00017846,2]
[381775410,1756342252314,-400.0,0.00017846,2]
[381775411,1756342252324,-400.0,0.00017846,2]
[381775413,1756342252333,-400.0,0.00017846,2]
[381775414,1756342252342,-400.0,0.00017846,2]
[381775415,1756342252352,-400.0,0.00017846,2]
[381775417,1756342252362,-400.0,0.00017846,2]
[381775419,1756342252371,-400.0,0.00017846,2]
[381775421,1756342252383,-400.0,0.00017846,2]
[381775423,1756342252393,-400.0,0.00017846,2]
[381775425,1756342252402,-400.0,0.00017846,2]
[381775427,1756342252412,-400.0,0.00017846,2]
[381775429,1756342252422,-400.0,0.00017846,2]
[381775431,1756342252432,-400.0,0.00017846,2]
[381775433,1756342252441,-400.0,0.00017846,2]
[381775435,1756342252450,-400.0,0.00017846,2]
[381775437,1756342252460,-400.0,0.00017846,2]
[381775439,1756342252468,-492.06,0.00017846,2]
[381775441,1756342252478,-400.0,0.00017846,2]
[381775443,1756342252487,-400.0,0.00017846,2]
[381775445,1756342252497,-400.0,0.00017846,2]
[381775447,1756342252506,-236.71,0.00017846,2]
[381775450,1756342252516,-400.0,0.00017846,2]
[381775451,1756342252525,-400.0,0.00017846,2]
[381775453,1756342252534,-400.0,0.00017846,2]
[381775455,1756342252544,-400.0,0.00017846,2]
[381775457,1756342252553,-350.04,0.00017846,2]
[381775460,1756342252566,-400.0,0.00017846,2]
[381775462,1756342252575,-472.97260383,0.00017846,2]
[381775464,1756342252585,-400.0,0.00017846,2]
[381775466,1756342252598,-400.0,0.00017846,2]
[381775468,1756342252609,-400.0,0.00017846,2]
[381775470,1756342252618,-400.0,0.00017846,2]
[381775472,1756342252628,-400.0,0.00017846,2]
[381775474,1756342252639,-400.0,0.00017846,2]
[381775476,1756342252648,-400.0,0.00017846,2]
[381775478,1756342252658,-400.0,0.00017846,2]
[381775480,1756342252670,-400.0,0.00017846,2]
[381775482,1756342252680,-400.0,0.00017846,2]
[381775484,1756342252689,-427.09,0.00017846,2]
[381775486,1756342252699,-400.0,0.00017846,2]
[381775488,1756342252708,-476.45,0.00017846,2]
[381775491,1756342252718,-400.0,0.00017846,2]
[381775493,1756342252728,-400.0,0.00017846,2]
[381775495,1756342252737,-400.0,0.00017846,2]
[381775497,1756342252746,-400.0,0.00017846,2]
[381775499,1756342252756,-400.0,0.00017846,2]
[381775501,1756342252766,-400.0,0.00017846,2]
[381775503,1756342252775,-400.0,0.00017846,2]
[381775505,1756342252785,-400.0,0.00017846,2]
[381775507,1756342252794,-400.0,0.00017846,2]
[381775509,1756342252804,-400.0,0.00017846,2]
[381775511,1756342252813,-400.0,0.00017846,2]
[381775523,1756342252912,-400.0,0.00017846,2]
[381775525,1756342252922,-400.0,0.00017846,2]
[381775527,1756342252933,-400.0,0.00017846,2]
[381775529,1756342252942,-400.0,0.00017846,2]
[381775531,1756342252952,-400.0,0.00017846,2]
[381775533,1756342252962,-400.0,0.00017846,2]
[381775535,1756342252971,-472.07,0.00017846,2]
[381775537,1756342252980,-402.93,0.00017846,2]
[381775539,1756342252989,-467.54,0.00017846,2]
[381775541,1756342252998,-8325.4,0.00017846,2]
[381775543,1756342253007,-400.0,0.00017846,2]
[381775545,1756342253016,-400.0,0.00017846,2]
[381775547,1756342253026,-400.0,0.00017846,2]
[381775549,1756342253035,-400.0,0.00017846,2]
[381775551,1756342253044,-3528.25,0.00017846,2]
[381775553,1756342253054,-461.21974599,0.00017846,2]
[381775555,1756342253063,-400.0,0.00017846,2]
[381775557,1756342253073,-400.0,0.00017846,2]
[381775559,1756342253082,-400.0,0.00017846,2]
[381775561,1756342253091,-400.0,0.00017846,2]
[381775563,1756342253099,-200.0,0.00017855,2]
[381775564,1756342253112,-200.0,0.00017856,2]
[381775566,1756342253121,-200.0,0.00017856,2]
[381775569,1756342253131,-500.0,0.00017873,2]
[381775570,1756342253140,-501.06169613,0.00017873,2]
[381775572,1756342253149,-500.0,0.00017873,2]
[381775574,1756342253158,-1000.0,0.00017878,3]
[381775576,1756342253167,-251.0,0.00017878,2]
[381775578,1756342253176,-459.51979238,0.00017887,2]
[381775580,1756342253185,-1000.0,0.000179,2]
[381775582,1756342253194,-1967.91318661,0.000179,2]
[381775584,1756342253202,-163.11793483,0.000179,2]
[381775586,1756342253211,-1461.75,0.000179,2]
[381775588,1756342253220,-2600.0,0.000179,6]
[381775590,1756342253229,-459.51979238,0.000179,2]
[381775592,1756342253237,-900.0,0.000179,6]
[381775594,1756342253246,-4520.0,0.00017919,2]
[381775596,1756342253255,-157.15315854,0.00017934,2]
[381775598,1756342253264,-428.4532614,0.00017958,2]
[381775599,1756342253273,-5842.095651,0.00017965,2]
[381775601,1756342253282,-500.0,0.00017973,2]
[381775603,1756342253291,-500.0,0.00017973,2]
[381775605,1756342253300,-533.44368358,0.00017973,2]
[381775607,1756342253309,-500.0,0.00017973,2]
[381775609,1756342253318,-500.18438142,0.00017973,2]
[381775611,1756342253327,-500.0,0.00017973,2]
[381775613,1756342253337,-500.0,0.00017973,2]
[381775615,1756342253346,-500.0,0.00017973,2]
[381775617,1756342253356,-500.0,0.00017973,2]
[381775619,1756342253364,-500.0,0.00017973,2]
[381775621,1756342253373,-500.0,0.00017973,2]
[381775623,1756342253382,-500.0,0.00017973,2]
[381775625,1756342253391,-1379.0011755,0.00017987,2]
[381775627,1756342253400,-222.1303078,0.00017987,2]
[381775629,1756342253409,-400.0,0.00017988,2]
[381775631,1756342253418,-400.0,0.00017988,2]
[381775633,1756342253428,-400.0,0.00017988,2]
[381775635,1756342253440,-400.0,0.00017988,2]
[381775637,1756342253449,-400.0,0.00017988,2]
[381775639,1756342253458,-605.8,0.00017988,2]
[381775641,1756342253467,-400.0,0.00017988,2]
[381775643,1756342253477,-400.0,0.00017988,2]
[381775645,1756342253487,-400.046235,0.00017988,2]
[381775647,1756342253496,-600.770581,0.00017988,2]
[381775649,1756342253505,-400.0,0.00017988,2]
[381775651,1756342253514,-253.32063,0.00017988,2]
[381775653,1756342253524,-160.972422,0.00017988,2]
[381775655,1756342253533,-400.0,0.00017988,2]
[381775657,1756342253543,-400.0,0.00017988,2]
[381775659,1756342253551,-186.503108,0.00017988,2]
[381775661,1756342253560,-400.0,0.00017988,2]
[381775663,1756342253570,-179.561786,0.00017988,2]
[381775665,1756342253579,-178.551486,0.00017988,2]
[381775667,1756342253592,-1684.81,0.00017988,2]
[381775669,1756342253602,-185.384271,0.00017988,2]
[381775671,1756342253612,-178.385244,0.00017988,2]
[381775673,1756342253621,-400.0,0.00017988,2]
[381775675,1756342253632,-1379.0011755,0.00017988,2]
[381775677,1756342253641,-546.29,0.00017988,2]
[381775679,1756342253652,-400.0,0.00017988,2]
[381775681,1756342253662,-427.72,0.00017988,2]
[381775683,1756342253672,-708.32,0.00017988,2]
[381775685,1756342253682,-400.0,0.00017988,2]
[381775687,1756342253691,-400.0,0.00017988,2]
[381775689,1756342253700,-513.66,0.00017988,2]
[381775691,1756342253709,-1091.94,0.00017988,2]
[381775693,1756342253718,-479.09,0.00017988,2]
[381775695,1756342253727,-400.0,0.00017988,2]
[381775697,1756342253737,-1785.22,0.00017988,2]
[381775699,1756342253746,-173.759415,0.00017988,2]
[381775701,1756342253755,-564.94,0.00017988,2]
[381775703,1756342253765,-777.86,0.00017988,2]
[381775705,1756342253774,-754.75,0.00017988,2]
[381775707,1756342253783,-222.1303078,0.00017988,2]
[381775709,1756342253792,-1323.44,0.00017988,2]
[381775711,1756342253802,-400.0,0.00017988,2]
[381775713,1756342253810,-400.0,0.00017988,2]
[381775715,1756342253819,-400.0,0.00017988,2]
[381775717,1756342253829,-562.22,0.00017988,2]
[381775719,1756342253838,-400.0,0.00017988,2]
[381775721,1756342253847,-400.0,0.00017988,2]
[381775723,1756342253857,-400.0,0.00017988,2]
[381775725,1756342253868,-400.0,0.00017988,2]
[381775727,1756342253877,-400.0,0.00017988,2]
[381775729,1756342253887,-400.0,0.00017988,2]
[381775731,1756342253896,-668.84,0.00017988,2]
[381775733,1756342253905,-400.0,0.00017988,2]
[381775735,1756342253914,-400.0,0.00017988,2]
[381775737,1756342253923,-400.0,0.00017988,2]
[381775739,1756342253933,-400.0,0.00017988,2]
[381775741,1756342253942,-400.0,0.00017988,2]
[381775743,1756342253951,-445.96,0.00017988,2]
[381775745,1756342253961,-650.67,0.00017988,2]
[381775747,1756342253971,-244.723304,0.00017988,2]
[381775749,1756342253982,-1230.98,0.00017989,2]
[381775751,1756342253994,-400.0,0.00017989,2]
[381775753,1756342254003,-400.0,0.00017989,2]
[381775755,1756342254013,-400.0,0.00017989,2]
[381775757,1756342254022,-400.0,0.00017989,2]
[381775759,1756342254031,-400.0,0.00017989,2]
[381775761,1756342254041,-400.0,0.00017989,2]
[381775763,1756342254052,-400.0,0.00017989,2]
[381775765,1756342254061,-400.0,0.00017989,2]
[381775767,1756342254070,-270.60563514,0.0001799,2]
[381775769,1756342254078,-316.95732304,0.0001799,2]
[381775771,1756342254088,-400.0,0.00017999,2]
[381775773,1756342254098,-400.0,0.00017999,2]
[381775775,1756342254108,-478.19,0.00017999,2]
[381775777,1756342254117,-400.0,0.00017999,2]
[381775779,1756342254127,-400.0,0.00017999,2]
[381775781,1756342254136,-410.16,0.00017999,2]
[381775783,1756342254144,-400.0,0.00017999,2]
[381775785,1756342254154,-400.0,0.00017999,2]
[381775787,1756342254163,-447.87,0.00017999,2]
[381775789,1756342254172,-400.0,0.00017999,2]
[381775791,1756342254181,-400.0,0.00017999,2]
[381775793,1756342254191,-2134.26,0.00017999,2]
[381775795,1756342254200,-500.0,0.00017999,2]
[381775797,1756342254209,-504.15,0.00017999,2]
[381775799,1756342254219,-300.0,0.00017999,2]
[381775801,1756342254227,-400.0,0.00017999,2]
[381775803,1756342254237,-400.0,0.00017999,2]
[381775805,1756342254247,-581.69,0.00017999,2]
[381775807,1756342254256,-400.0,0.00017999,2]
[381775809,1756342254265,-593.45,0.00017999,2]
[381775811,1756342254274,-500.0,0.00017999,2]
[381775813,1756342254283,-400.0,0.00017999,2]
[381775815,1756342254292,-305.05024578,0.00017999,2]
[381775859,1756342254700,-94.94975422,0.00017999,2]
[381775861,1756342254710,-400.0,0.00017999,2]
[381775863,1756342254719,-400.0,0.00017999,2]
[381775865,1756342254728,-300.0,0.00017999,2]
[381775867,1756342254737,-400.0,0.00017999,2]
[381775868,1756342254747,-400.0,0.00017999,2]
[381775870,1756342254756,-400.0,0.00017999,2]
[381775872,1756342254765,-400.0,0.00017999,2]
[381775874,1756342254774,-214.83091284,0.00017999,2]
[381775876,1756342254787,-185.16908716,0.00017999,2]
[381775878,1756342254796,-161.78032463,0.00017999,2]
[381775881,1756342254807,-238.21967537,0.00017999,2]
[381775883,1756342254816,-147.03619757,0.00017999,2]
[381775885,1756342254827,-152.96380243,0.00017999,2]
[381775887,1756342254836,-770.1,0.00017999,2]
[381775888,1756342254845,-400.0,0.00017999,2]
[381775890,1756342254855,-467.33,0.00017999,2]
[381775892,1756342254864,-400.0,0.00017999,2]
[381775894,1756342254873,-1709.55773757,0.00017999,2]
[381775916,1756342255075,-400.0,0.00016696,2]
[381775918,1756342255085,-400.0,0.00017846,2]
[381775920,1756342255094,-166.18,0.00017999,2]
[381775924,1756342255121,-269.73329,0.00016696,2]
[381775926,1756342255134,-130.26671,0.00016696,2]
[381775928,1756342255146,-124.26226243,0.00017999,2]
[381775931,1756342255156,-400.0,0.00017999,2]
[381775932,1756342255165,-400.0,0.00017999,2]
[381775934,1756342255174,-400.0,0.00017999,2]
[381775936,1756342255184,-3685.0,0.00018,2]
[381775938,1756342255194,-18327.15942757,0.00018,2]
[381775941,1756342255206,-340.70493233,0.00018,2]
[381775984,1756342255788,-500.0,0.00016696,2]
[381775986,1756342255798,-400.0,0.00016696,2]
[381775988,1756342255807,-274.45120239,0.00016696,2]
[381775990,1756342255818,-125.54879761,0.00016696,2]
[381775992,1756342255827,-400.0,0.0001697,2]
[381775994,1756342255836,-400.0,0.00017244,2]
[381775996,1756342255845,-400.0,0.00017518,2]
[381775998,1756342255855,-400.0,0.00017572,2]
[381776000,1756342255864,-400.0,0.00017792,2]
[381776002,1756342255874,-400.0,0.00017845,2]
[381776004,1756342255883,-49042.27838082,0.00018,2]
[381776007,1756342255896,-726.24176526,0.00018,2]
[381776012,1756342255937,-400.0,0.00016696,2]
[381776014,1756342255947,-400.0,0.00017549,2]
[381776016,1756342255956,-1173.0,0.00017791,2]
[381776018,1756342255965,-400.0,0.00017846,2]
[381776020,1756342255974,-648.97047481,0.00018,2]
[381776023,1756342255998,-1135.375005,0.00018,2]
[381776026,1756342256009,-260.63,0.00018,2]
[381776424,1756342307127,1414.0,0.0003013,120]
[381776425,1756342309519,493.0,0.0003013,120]
[381776426,1756342367645,531.24923595,0.0003013,120]
[381776427,1756342370411,237.0,0.0003013,120]
[381776428,1756342425178,157.93,0.00030137,120]
[381776430,1756342442394,151.42,0.00024718,120]
[381776431,1756342460450,-200.0,0.00016,2]
[381776432,1756342470382,-183.56,0.00013699,2]
[381776437,1756342658304,-1965.49112374,0.00016,2]
[381776438,1756342661244,-250.0,0.00016,2]
[381776440,1756342927840,172.486176,7.945e-05,2]
[381776442,1756342995447,200.07451212,0.000301,120]
[381776443,1756343001300,159.0,0.0003013,120]
[381776444,1756343006385,159.0,0.0003013,120]
[381776455,1756343333382,1239.0,0.0003013,120]
[381776456,1756343387910,467.0,0.0003013,120]
[381776460,1756343432013,-500.0,0.000156,2]
[381776461,1756343432024,-500.0,0.000156,2]
[381776462,1756343432035,-375.80685743,0.000156,2]
[381776463,1756343432046,-1130.1,0.00015601,2]
[381776464,1756343432056,-250.0,0.00015601,2]
[381776465,1756343432066,-160.0,0.00015612,7]
[381776466,1756343432077,-1000.0,0.00015868,2]
[381776467,1756343432088,-218.0,0.000159,2]
[381776468,1756343432098,-1200.0,0.00015999,2]
[381776469,1756343432108,-1347.85151361,0.00016,2]
[381776470,1756343432120,-875.95952308,0.00016,2]
[381776471,1756343432136,-560.69783957,0.00016,2]
[381776472,1756343432147,-167.32,0.00016171,2]
[381776473,1756343432159,-173.08390686,0.00016296,2]
[381776474,1756343432172,-126.91609314,0.00016296,2]
[381776475,1756343432183,-1129.0,0.00016297,2]
[381776476,1756343432195,-3357.359,0.000163,2]
[381776477,1756343432206,-666.0,0.00016302,3]
[381776478,1756343432219,-182.66198453,0.00016373,2]
[381776479,1756343432230,-281.40301357,0.00016428,2]
[381776480,1756343432241,-151.0,0.00016428,2]
[381776481,1756343432253,-151.0,0.00016428,2]
[381776482,1756343432264,-151.0,0.00016428,2]
[381776483,1756343432276,-151.0,0.00016428,2]
[381776484,1756343432288,-151.0,0.00016428,2]
[381776485,1756343432303,-151.0,0.00016428,2]
[381776486,1756343432313,-151.0,0.00016428,2]
[381776487,1756343432327,-151.0,0.00016428,2]
[381776488,1756343432337,-151.0,0.00016428,2]
[381776489,1756343432347,-151.0,0.00016428,2]
[381776490,1756343432358,-151.0,0.00016428,2]
[381776491,1756343432369,-151.0,0.00016428,2]
[381776492,1756343432381,-151.0,0.00016428,2]
[381776493,1756343432391,-151.0,0.00016428,2]
[381776494,1756343432402,-178.88109856,0.00016437,2]
[381776495,1756343432412,-181.37711107,0.00016437,2]
[381776496,1756343432422,-490.39594048,0.00016437,2]
[381776497,1756343432433,-2434.19327508,0.00016438,2]
[381776500,1756343432457,-7407.67895654,0.00016438,2]
[381776503,1756343432469,-749.23946727,0.00016438,2]
[381776505,1756343432481,-458.74533097,0.00016438,2]
[381776509,1756343432498,-523.38584556,0.00016438,2]
[381776518,1756343432570,-2901.33309491,0.00016438,2]
[381776543,1756343437950,-1189.5,0.00016438,2]
[381776544,1756343438003,-6664.0,0.00016438,2]
[381776545,1756343438015,-1653.4725982,0.00016438,2]
[381776546,1756343438029,-901.97674804,0.00016438,2]
[381776548,1756343438389,-4147.98379708,0.00016438,2]
[381776550,1756343438401,-2686.65726764,0.00016438,2]
[381776552,1756343438435,-570.075,0.00016438,2]
[381776553,1756343438451,-538.01968783,0.00016438,2]
[381776554,1756343438467,-672.51203162,0.00016438,2]
[381776562,1756343440029,-313.63581535,0.00016438,2]
[381776563,1756343440040,-1897.74363316,0.00016438,2]
[381776564,1756343440167,-2054.52702356,0.00016438,2]
[381776565,1756343440178,-314.123928,0.00016438,2]
[381776566,1756343440190,-1209.83640767,0.00016438,2]
[381776567,1756343440225,-11953.70077818,0.00016438,2]
[381776568,1756343440236,-740.42271886,0.00016438,2]
[381776569,1756343440263,-183.73153973,0.00016438,2]
[381776570,1756343440280,-108649.14505475,0.00016438,2]
[381776571,1756343440290,-500.0,0.00016473,2]
[381776572,1756343440300,-500.0,0.00016473,2]
[381776573,1756343440309,-151.42,0.00016479,2]
[381776574,1756343440319,-375.13398047,0.00016595,2]
[381776575,1756343440328,-2189.9014,0.00016595,2]
[381776576,1756343440337,-335.49,0.00016596,2]
[381776577,1756343440346,-3880.29121432,0.00016596,2]
[381776578,1756343440356,-453.29325525,0.00016596,2]
[381776579,1756343440365,-533.44368358,0.00016673,2]
[381776580,1756343440374,-500.84504675,0.00016673,2]